bitfinex-derivatives/quotes_SOLF0:USTF0_20260316
["timestamp","ask_amount","ask_price","bid_price","bid_amount"]
[1773621052792,22.5209259,92.084,92.022,23.12814265]
[1773621053000,22.5209259,92.084,92.024,23.12814265]
[1773621053196,22.5209259,92.081,92.024,23.12814265]
[1773621054603,9.772,92.078,92.024,23.12814265]
[1773621054999,22.99290717,92.078,92.026,22.60464984]
[1773621056300,22.99290717,92.063,92.013,10.11187566]
[1773621056508,22.99290717,92.063,92.002,10.11187566]
[1773621056704,22.99290717,92.025,91.986,0.00087566]
[1773621056908,22.99290717,92.025,91.968,22.60464984]
[1773621058109,9.778,92.024,91.969,22.60464984]
[1773621058306,22.99290717,92.025,91.969,22.60464984]
[1773621060310,9.778,92.022,91.969,22.60464984]
[1773621060513,22.99290717,92.021,91.969,22.60464984]
[1773621060706,22.99290717,92.042,91.969,22.60464984]
[1773621061006,9.776,92.045,91.979,22.60464984]
[1773621061607,9.776,92.045,91.983,22.60464984]
[1773621061913,22.99290717,92.074,91.996,22.60464984]
[1773621062110,22.99290717,92.074,92.0,22.60464984]
[1773621063212,9.773,92.073,92.011,22.60464984]
[1773621067112,9.773,92.073,92.013,22.60464984]
[1773621068616,9.773,92.073,92.016,22.60464984]
[1773621072313,9.775,92.057,92.009,22.60464984]
[1773621072911,22.99290717,92.059,92.009,22.60464984]
[1773621074913,22.99290717,92.059,92.011,22.60464984]
[1773621078717,32.76690717,92.059,92.011,22.60464984]
[1773621078913,22.99290717,92.059,92.011,22.60464984]
[1773621079423,22.99290717,92.059,92.012,22.60464984]
[1773621079618,34.2,92.087,92.012,22.60464984]
[1773621079619,22.99290717,92.076,92.012,22.60464984]
[1773621079818,22.99290717,92.076,92.008,13.48238311]
[1773621079819,9.773,92.074,92.021,22.60464984]
[1773621080022,22.99290717,92.073,92.021,86.60464984]
[1773621080225,22.99290717,92.069,92.021,86.60464984]
[1773621081724,32.76590717,92.069,92.021,86.60464984]
[1773621082120,32.76590717,92.069,92.022,23.09442717]
[1773621082423,30.88457862,92.065,92.022,23.09442717]
[1773621083222,9.775,92.057,92.022,23.09442717]
[1773621084821,9.775,92.057,92.021,64.0]
[1773621085021,21.11057862,92.056,92.021,64.0]
[1773621086019,21.11057862,92.056,92.013,23.09442717]
[1773621089028,21.11057862,92.056,92.013,87.09442717]
[1773621089225,21.11057862,92.071,92.02,3.39876159]
[1773621089430,21.11057862,92.071,91.995,20.2368001]
[1773621089431,21.11057862,92.071,92.03,3.39876159]
[1773621089630,21.11057862,92.071,92.021,23.09442717]
[1773621090633,9.773,92.07,92.021,23.09442717]
[1773621090833,21.11057862,92.084,92.041,23.09442717]
[1773621091224,21.11057862,92.081,92.041,23.09442717]
[1773621093535,30.88257862,92.081,92.041,23.09442717]
[1773621093736,21.11057862,92.08,92.041,23.09442717]
[1773621093933,21.11057862,92.099,92.041,23.09442717]
[1773621094134,21.11057862,92.099,92.06,3.39876159]
[1773621095535,9.769,92.108,92.061,23.09442717]
[1773621096339,30.87957862,92.108,92.061,23.09442717]
[1773621096539,30.87957862,92.108,92.07,3.39876159]
[1773621097034,21.11057862,92.102,92.061,23.09442717]
[1773621098535,21.11057862,92.112,92.061,23.09442717]
[1773621099535,9.769,92.111,92.061,23.09442717]
[1773621103239,43.46934845,92.151,92.061,23.09442717]
[1773621103240,21.11057862,92.126,92.08,26.49318876]
[1773621103841,21.11057862,92.126,92.063,13.48238311]
[1773621103842,21.11057862,92.119,92.06,3.39876159]
[1773621104042,3.39876159,92.12,92.054,23.09442717]
[1773621104043,21.11057862,92.109,92.054,23.09442717]
[1773621104445,30.88057862,92.1,92.054,23.09442717]
[1773621106244,9.769,92.109,92.06,26.49318876]
[1773621106438,9.769,92.109,92.07,3.39876159]
[1773621108344,9.769,92.109,92.06,26.49318876]
[1773621108845,21.11057862,92.103,92.05,3.39876159]
[1773621109045,21.11057862,92.103,92.051,64.0]
[1773621109245,21.11057862,92.1,92.052,23.09442717]
[1773621109451,21.11057862,92.099,92.052,23.09442717]
[1773621110545,9.771,92.096,92.052,23.09442717]
[1773621110746,21.11057862,92.099,92.052,23.09442717]
[1773621111348,21.11057862,92.112,92.06,26.49318876]
[1773621111543,21.11057862,92.112,92.07,23.09442717]
[1773621111744,21.11057862,92.112,92.061,23.09442717]
[1773621112455,9.769,92.111,92.061,23.09442717]
[1773621112649,23.79692327,92.11,92.061,23.09442717]
[1773621113344,23.79692327,92.11,92.07,3.39876159]
[1773621113548,9.769,92.109,92.07,3.39876159]
[1773621114053,9.769,92.109,92.061,23.09442717]
[1773621115847,20.80629455,92.099,92.05,22.18429969]
[1773621116055,20.80629455,92.099,92.023,20.2368001]
[1773621116056,20.80629455,92.089,92.037,22.18429969]
[1773621116854,9.771,92.088,92.04,22.18429969]
[1773621117147,9.771,92.088,92.04,25.58306128]
[1773621118257,9.77,92.096,92.041,22.18429969]
[1773621118458,20.80629455,92.102,92.051,22.18429969]
[1773621118657,20.80629455,92.102,92.05,3.39876159]
[1773621118658,20.80629455,92.102,92.055,22.18429969]
[1773621118953,20.80629455,92.102,92.056,22.18429969]
[1773621120661,9.77,92.1,92.056,22.18429969]
[1773621121358,9.77,92.1,92.056,32.29776622]
[1773621122158,9.77,92.1,92.057,22.18429969]
[1773621122356,9.769,92.11,92.061,22.18429969]
[1773621123959,9.769,92.11,92.063,22.18429969]
[1773621124160,9.769,92.11,92.064,22.18429969]
[1773621124661,30.57529455,92.11,92.064,22.18429969]
[1773621124961,30.57529455,92.11,92.07,3.39564459]
[1773621125160,20.80629455,92.11,92.07,25.57994428]
[1773621125556,9.768,92.118,92.07,25.57994428]
[1773621125751,32.61,92.149,92.1,3.39564459]
[1773621125752,20.80629455,92.149,92.1,3.39564459]
[1773621125957,20.80629455,92.149,92.101,22.18429969]
[1773621128462,20.80629455,92.163,92.11,25.57994428]
[1773621128765,19.515,92.223,92.096,10.11346653]
[1773621128766,20.80629455,92.178,92.131,22.18429969]
[1773621129559,32.61,92.226,92.131,22.18429969]
[1773621129763,3.39564459,92.22,92.16,3.39564459]
[1773621129961,20.80629455,92.209,92.153,22.18429969]
[1773621130162,32.61,92.221,92.138,22.18429969]
[1773621130163,20.80629455,92.19,92.138,22.18429969]
[1773621130462,20.80629455,92.19,92.141,22.18429969]
[1773621130768,20.80629455,92.207,92.151,22.18429969]
[1773621131663,20.80629455,92.207,92.16,25.57994428]
[1773621131965,34.2,92.215,92.17,3.39564459]
[1773621132161,34.2,92.215,92.16,25.57994428]
[1773621132556,24.20193914,92.2,92.145,22.18429969]
[1773621132756,24.20193914,92.2,92.119,20.2368001]
[1773621132757,20.80629455,92.189,92.138,10.11346653]
[1773621132958,20.80629455,92.189,92.14,25.57994428]
[1773621137069,20.80629455,92.189,92.15,3.39564459]
[1773621137465,34.18,92.204,92.15,25.57994428]
[1773621137666,3.39564459,92.2,92.146,22.18429969]
[1773621137867,24.20193914,92.2,92.146,22.18429969]
[1773621138169,20.80629455,92.189,92.146,22.18429969]
[1773621138366,20.80629455,92.187,92.131,22.18429969]
[1773621138569,20.80629455,92.169,92.116,22.18429969]
[1773621139266,20.80629455,92.169,92.088,35.6]
[1773621139267,24.20193914,92.15,92.095,22.18429969]
[1773621139670,20.80629455,92.15,92.095,22.18429969]
[1773621140071,20.80629455,92.15,92.1,3.39564459]
[1773621142474,20.80629455,92.15,92.1,25.16028239]
[1773621144070,3.39564459,92.17,92.111,21.7646378]
[1773621144367,26.08883265,92.17,92.111,21.7646378]
[1773621144573,22.69318806,92.149,92.095,21.7646378]
[1773621144766,22.69318806,92.149,92.096,64.0]
[1773621144967,22.69318806,92.149,92.1,25.16028239]
[1773621146075,22.69318806,92.149,92.101,9.77]
[1773621146273,22.69318806,92.149,92.102,21.7646378]
[1773621147772,22.69318806,92.149,92.096,64.0]
[1773621148577,22.69318806,92.147,92.096,64.0]
[1773621149180,22.69318806,92.147,92.092,21.7646378]
[1773621149681,22.69318806,92.139,92.091,64.0]
[1773621150274,26.08883265,92.12,92.078,21.7646378]
[1773621151080,22.69318806,92.118,92.071,35.62]
[1773621153676,9.768,92.117,92.071,35.62]
[1773621153978,22.69318806,92.118,92.071,35.62]
[1773621154777,22.69318806,92.125,92.072,21.7646378]
[1773621155484,22.69318806,92.123,92.072,21.7646378]
[1773621155679,22.69318806,92.119,92.072,21.7646378]
[1773621156184,22.69318806,92.117,92.061,64.0]
[1773621156882,22.69318806,92.117,92.062,21.7646378]
[1773621157082,22.69318806,92.117,92.07,3.39564459]
[1773621157381,22.69318806,92.117,92.07,25.16028239]
[1773621157585,22.69318806,92.117,92.07,21.7646378]
[1773621159182,22.69318806,92.17,92.111,21.7646378]
[1773621159384,26.08883265,92.17,92.111,21.7646378]
[1773621159581,22.69318806,92.166,92.12,3.39564459]
[1773621160482,22.69318806,92.166,92.111,21.7646378]
[1773621162592,65.39564459,92.18,92.121,14.64534326]
[1773621162793,22.69318806,92.179,92.121,14.64534326]
[1773621162988,22.69318806,92.179,92.13,3.39564459]
[1773621163594,22.69318806,92.179,92.131,14.65859883]
[1773621166392,22.69318806,92.169,92.114,14.74727186]
[1773621166985,22.69318806,92.166,92.114,14.74727186]
[1773621168791,22.69318806,92.182,92.13,3.39564459]
[1773621169195,26.08883265,92.18,92.121,14.78449883]
[1773621169392,26.08883265,92.18,92.121,78.78449883]
[1773621169994,9.762,92.176,92.121,78.78449883]
[1773621170194,22.69318806,92.169,92.121,64.0]
[1773621170395,22.69318806,92.168,92.121,64.0]
[1773621170798,84.69318806,92.16,92.121,64.0]
[1773621171001,84.69318806,92.16,92.111,64.0]
[1773621171199,22.69318806,92.159,92.111,64.0]
[1773621171594,3.39564459,92.14,92.101,10.11346653]
[1773621171899,22.69318806,92.139,92.089,10.11346653]
[1773621172303,22.69318806,92.139,92.088,10.11346653]
[1773621172493,21.51055122,92.137,92.089,10.11346653]
[1773621172894,21.51055122,92.137,92.072,9.773]
[1773621172895,24.90619581,92.12,92.081,10.11346653]
[1773621173098,24.90619581,92.12,92.071,10.11346653]
[1773621173405,24.90619581,92.12,92.068,10.11346653]
[1773621176902,24.90619581,92.12,92.067,10.11346653]
[1773621177101,24.90619581,92.12,92.068,10.11346653]
[1773621177506,21.59347123,92.118,92.068,10.11346653]
[1773621177705,24.98911582,92.11,92.06,10.11346653]
[1773621177902,24.98911582,92.1,92.06,10.11346653]
[1773621178202,24.98911582,92.1,92.05,14.85872538]
[1773621179601,24.98911582,92.1,92.049,10.11346653]
[1773621179807,62.0,92.16,92.038,10.11346653]
[1773621179808,21.59347123,92.089,92.038,10.11346653]
[1773621180608,21.59347123,92.069,92.034,10.11346653]
[1773621180804,21.59347123,92.069,92.022,13.48238311]
[1773621180805,21.59347123,92.069,92.022,14.98623092]
[1773621181003,21.59347123,92.085,92.04,3.39903123]
[1773621181203,24.99250246,92.1,92.041,14.98623092]
[1773621182211,21.59347123,92.115,92.06,3.39903123]
[1773621182411,21.59347123,92.115,92.061,14.66055563]
[1773621183210,21.59347123,92.109,92.048,10.11346653]
[1773621183406,21.59347123,92.099,92.047,10.11346653]
[1773621183607,21.59347123,92.089,92.047,10.11346653]
[1773621183805,21.59347123,92.089,92.046,10.11346653]
[1773621184705,21.59347123,92.089,92.04,10.11346653]
[1773621184910,21.59347123,92.089,92.03,3.39903123]
[1773621184911,21.59347123,92.089,92.031,10.11346653]
[1773621185209,21.59347123,92.089,92.033,14.76359363]
[1773621186103,19.531,92.146,92.02,64.0]
[1773621186104,21.59347123,92.104,92.06,3.39903123]
[1773621186302,21.59347123,92.104,92.051,14.14279055]
[1773621187511,21.59347123,92.079,92.026,10.11346653]
[1773621187711,19.53,92.148,92.016,14.17187992]
[1773621187712,24.99250246,92.07,92.016,14.17187992]
[1773621187917,21.59347123,92.07,92.02,3.39903123]
[1773621188116,21.59347123,92.07,92.02,17.57091115]
[1773621189207,21.59347123,92.069,92.01,3.39903123]
[1773621190411,9.772,92.08,92.03,3.39903123]
[1773621190815,31.36547123,92.08,92.02,14.40914251]
[1773621191016,21.59347123,92.079,92.02,14.40914251]
[1773621191411,21.59347123,92.079,92.022,14.43139221]
[1773621191815,21.59347123,92.076,92.005,10.11346653]
[1773621192117,21.59347123,92.076,92.005,14.43139221]
[1773621192827,21.59347123,92.076,92.006,14.48339063]
[1773621193016,21.59347123,92.076,92.008,14.48339063]
[1773621193522,21.59347123,92.076,92.019,14.49608747]
[1773621194024,21.59347123,92.076,92.007,64.0]
[1773621194816,21.59347123,92.069,92.008,9.78]
[1773621195117,21.59347123,92.069,91.996,64.0]
[1773621195617,21.59347123,92.058,91.999,14.43855761]
[1773621196623,21.59347123,92.058,92.001,9.78]
[1773621199518,21.59347123,92.058,91.987,64.0]
[1773621199519,21.59347123,92.058,92.004,14.45775349]
[1773621200320,9.773,92.069,92.006,14.4530327]
[1773621201123,31.36647123,92.069,92.006,14.4530327]
[1773621201322,21.59347123,92.068,92.006,14.4530327]
[1773621201622,21.59347123,92.068,92.008,9.78]
[1773621201823,21.59347123,92.068,92.009,14.4650455]
[1773621203627,21.59347123,92.068,92.011,14.23273687]
[1773621204427,21.59347123,92.068,92.014,9.779]
[1773621204629,21.59347123,92.068,92.015,14.2239624]
[1773621205419,21.14157878,92.089,92.015,14.2239624]
[1773621205827,21.14157878,92.089,92.001,64.0]
[1773621206133,21.14157878,92.089,92.002,14.22132605]
[1773621207628,21.14157878,92.062,92.007,9.78]
[1773621208732,21.14157878,92.059,92.007,9.78]
[1773621209326,62.0,92.08,91.987,13.9682566]
[1773621209327,21.14157878,92.057,91.987,13.9682566]
[1773621209932,21.14157878,92.037,91.987,13.9682566]
[1773621212133,21.14157878,92.037,91.99,3.40089137]
[1773621213135,21.14157878,92.035,91.988,13.88482582]
[1773621217544,21.14157878,92.035,91.98,13.18389137]
[1773621218136,21.14157878,92.033,91.98,13.18389137]
[1773621219442,21.14157878,92.033,91.981,13.93459956]
[1773621219843,21.14157878,92.033,91.982,9.783]
[1773621221247,21.14157878,92.033,91.99,17.34288567]
[1773621223548,21.14157878,92.049,91.993,13.97611664]
[1773621223753,21.14157878,92.066,92.01,3.40089137]
[1773621224753,21.14157878,92.059,92.01,3.40089137]
[1773621224955,21.14157878,92.059,92.01,17.30717176]
[1773621225648,21.14157878,92.059,92.011,23.68389681]
[1773621226155,21.14157878,92.074,92.03,3.40089137]
[1773621226958,21.14157878,92.096,92.04,3.40089137]
[1773621227355,21.14157878,92.096,92.06,3.40089137]
[1773621227553,21.14157878,92.129,92.06,3.40089137]
[1773621227751,21.14157878,92.129,92.07,3.40089137]
[1773621228449,34.2,92.132,92.08,3.40089137]
[1773621228450,21.14157878,92.118,92.08,3.40089137]
[1773621228656,21.14157878,92.133,92.09,3.40089137]
[1773621228852,21.14157878,92.131,92.075,10.11346653]
[1773621229052,21.14157878,92.131,92.066,10.11346653]
[1773621229352,21.14157878,92.131,92.065,10.11346653]
[1773621230251,21.14157878,92.125,92.067,9.773]
[1773621230448,21.14157878,92.125,92.067,22.7776056]
[1773621230648,21.14157878,92.125,92.069,10.11346653]
[1773621230851,21.14157878,92.125,92.075,10.11346653]
[1773621231052,21.14157878,92.125,92.078,13.0046056]
[1773621232146,21.14157878,92.125,92.075,10.11346653]
[1773621232349,21.14157878,92.125,92.022,32.61]
[1773621232350,21.14157878,92.125,92.054,10.11346653]
[1773621232549,21.36822031,92.123,92.046,15.43330064]
[1773621232754,21.36822031,92.101,92.034,10.11346653]
[1773621232955,21.36822031,92.101,92.03,15.43330064]
[1773621233358,20.71930816,92.089,92.03,15.43330064]
[1773621233858,20.71930816,92.089,92.033,22.94262725]
[1773621234051,20.71930816,92.089,92.034,12.82916072]
[1773621235756,20.71930816,92.089,92.035,13.50732231]
[1773621237354,20.71930816,92.089,92.037,10.11346653]
[1773621237557,20.71930816,92.089,92.038,13.49697647]
[1773621237958,20.71930816,92.089,92.039,77.49697647]
[1773621238159,20.71930816,92.089,92.042,13.49697647]
[1773621238360,20.71930816,92.103,92.042,13.49697647]
[1773621238759,20.71930816,92.103,92.044,13.49245845]
[1773621238956,10.86,92.141,92.044,13.49245845]
[1773621238957,20.71930816,92.11,92.044,13.49245845]
[1773621239162,20.71930816,92.11,92.045,74.11346653]
[1773621239360,20.71930816,92.11,92.045,64.0]
[1773621239561,20.71930816,92.11,92.057,9.775]
[1773621240862,20.71930816,92.11,92.061,23.48337144]
[1773621241064,20.71930816,92.11,92.061,87.48337144]
[1773621241859,20.71930816,92.107,92.061,64.0]
[1773621245466,20.71930816,92.107,92.056,9.775]
[1773621245969,20.71930816,92.104,92.04,10.07641143]
[1773621246169,20.71930816,92.104,92.042,13.96458577]
[1773621247264,20.71930816,92.103,92.042,13.96458577]
[1773621247560,20.71930816,92.103,92.038,9.777]
[1773621248563,20.71930816,92.098,92.038,9.777]
[1773621249766,20.71930816,92.098,92.041,13.71950515]
[1773621251365,20.71930816,92.098,92.041,77.71950515]
[1773621251558,20.71930816,92.098,92.044,9.776]
[1773621252365,20.71930816,92.095,92.044,9.776]
[1773621255473,20.71930816,92.081,92.042,64.0]
[1773621255671,20.71930816,92.081,92.04,3.39640074]
[1773621255870,20.71930816,92.081,92.032,64.0]
[1773621256578,30.49130816,92.08,92.032,64.0]
[1773621257368,30.49130816,92.08,92.032,73.777]
[1773621257966,20.71930816,92.079,92.032,73.777]
[1773621258578,20.71930816,92.079,92.04,3.39640074]
[1773621265775,20.59277795,92.069,92.015,9.779]
[1773621266978,20.59277795,92.089,92.031,13.22021613]
[1773621267183,20.59277795,92.089,92.04,3.39640074]
[1773621267582,20.59277795,92.08,92.04,3.39640074]
[1773621270084,20.59277795,92.08,92.041,12.77066648]
[1773621270781,20.59277795,92.098,92.054,9.775]
[1773621271083,20.59277795,92.098,92.06,16.14068859]
[1773621271282,20.59277795,92.125,92.07,3.39640074]
[1773621272180,20.59277795,92.125,92.065,9.774]
[1773621272682,20.59277795,92.112,92.065,9.774]
[1773621273983,20.59277795,92.112,92.07,3.39640074]
[1773621274180,62.0,92.13,92.08,3.39640074]
[1773621274380,20.59277795,92.127,92.08,3.39640074]
[1773621275784,20.59277795,92.127,92.083,10.07641143]
[1773621276382,20.59277795,92.127,92.084,10.07641143]
[1773621277789,20.59277795,92.125,92.075,10.07641143]
[1773621277985,20.59277795,92.125,92.074,10.07641143]
[1773621278685,20.59277795,92.121,92.074,10.07641143]
[1773621279678,20.59277795,92.119,92.074,10.07641143]
[1773621280883,20.59277795,92.109,92.069,10.07641143]
[1773621281687,20.59277795,92.109,92.06,3.39640074]
[1773621281688,20.59277795,92.109,92.067,10.07641143]
[1773621281888,20.59277795,92.109,92.068,10.07641143]
[1773621282387,20.59277795,92.109,92.072,9.773]
[1773621282589,20.59277795,92.122,92.075,10.07641143]
[1773621282785,20.59277795,92.122,92.051,84.21608888]
[1773621282786,20.59277795,92.139,92.09,3.39640074]
[1773621282990,20.59277795,92.139,92.065,20.21608888]
[1773621282991,20.59277795,92.139,92.1,3.39640074]
[1773621283181,20.59277795,92.139,92.101,10.07641143]
[1773621283384,20.59277795,92.154,92.12,3.39640074]
[1773621284492,34.2,92.167,92.12,3.39640074]
[1773621284994,20.59277795,92.163,92.114,12.17046211]
[1773621286087,20.59277795,92.161,92.106,10.07641143]
[1773621286288,20.59277795,92.161,92.104,10.07641143]
[1773621286488,20.59277795,92.161,92.11,3.39640074]
[1773621287087,20.59277795,92.159,92.11,3.39640074]
[1773621287288,20.59277795,92.159,92.12,3.39640074]
[1773621287489,34.2,92.186,92.13,3.39640074]
[1773621287684,20.59277795,92.21,92.16,3.39640074]
[1773621288089,20.59277795,92.21,92.17,3.39640074]
[1773621288798,20.59277795,92.199,92.14,13.16240074]
[1773621288995,20.59277795,92.199,92.16,3.39640074]
[1773621289190,54.79277795,92.214,92.17,3.39640074]
[1773621289489,20.59277795,92.213,92.17,3.39640074]
[1773621290187,20.59277795,92.213,92.161,12.00529049]
[1773621290388,20.59277795,92.209,92.15,3.39640074]
[1773621290594,20.59277795,92.209,92.16,3.39640074]
[1773621291889,20.59277795,92.209,92.17,3.39640074]
[1773621293994,20.59277795,92.209,92.16,3.39640074]
[1773621294696,20.59277795,92.209,92.17,3.39640074]
[1773621294996,20.59277795,92.209,92.16,3.39640074]
[1773621296890,34.2,92.214,92.161,11.84318076]
[1773621297090,21.15660291,92.213,92.161,11.84318076]
[1773621298694,21.15660291,92.213,92.17,3.39640074]
[1773621298896,62.0,92.22,92.171,11.78384804]
[1773621299095,21.15660291,92.248,92.2,3.39640074]
[1773621299301,21.15660291,92.248,92.18,3.39640074]
[1773621299602,21.15660291,92.246,92.19,3.39640074]
[1773621299799,21.15660291,92.246,92.18,3.39640074]
[1773621299800,3.39640074,92.24,92.18,3.39640074]
[1773621300098,21.15660291,92.219,92.16,3.39640074]
[1773621300498,21.15660291,92.219,92.17,3.39640074]
[1773621300698,21.15660291,92.219,92.113,19.538]
[1773621300699,21.15660291,92.199,92.142,11.71943043]
[1773621300893,21.15660291,92.199,92.16,3.39640074]
[1773621301099,21.15660291,92.212,92.16,3.39640074]
[1773621302095,21.15660291,92.212,92.118,10.07641143]
[1773621302096,21.15660291,92.228,92.19,3.39640074]
[1773621302302,21.15660291,92.249,92.2,3.39640074]
[1773621302801,21.15660291,92.249,92.21,3.38392666]
[1773621302997,21.15660291,92.249,92.203,11.96724511]
[1773621303306,21.15660291,92.249,92.21,3.38392666]
[1773621305105,21.15660291,92.269,92.21,3.38392666]
[1773621305406,30.90860291,92.269,92.23,3.38392666]
[1773621305599,21.15660291,92.269,92.23,3.38392666]
[1773621305805,21.15660291,92.269,92.211,21.80580885]
[1773621306601,21.15660291,92.266,92.22,3.38392666]
[1773621306801,21.15660291,92.266,92.22,13.14092666]
[1773621308003,21.15660291,92.281,92.23,3.38392666]
[1773621308301,21.15660291,92.279,92.22,3.38392666]
[1773621308808,21.15660291,92.279,92.24,3.38392666]
[1773621309004,21.15660291,92.299,92.24,3.38392666]
[1773621309499,21.15660291,92.299,92.241,9.755]
[1773621309699,21.15660291,92.299,92.25,3.38392666]
[1773621310105,21.15660291,92.299,92.241,21.66057562]
[1773621310410,21.15660291,92.299,92.25,3.38392666]
[1773621311008,21.15660291,92.299,92.26,3.38392666]
[1773621311308,21.15660291,92.299,92.251,11.92453448]
[1773621313206,21.15660291,92.299,92.24,15.2775528]
[1773621313411,21.15660291,92.289,92.23,3.38392666]
[1773621313806,21.15660291,92.289,92.231,11.65891262]
[1773621314606,21.15660291,92.289,92.24,3.38392666]
[1773621314909,21.15660291,92.289,92.241,11.68186358]
[1773621315104,62.0,92.3,92.251,11.68186358]
[1773621315310,34.16,92.315,92.27,3.38392666]
[1773621315507,13.35265783,92.442,92.201,34.68]
[1773621315508,21.15660291,92.349,92.29,3.38392666]
[1773621315713,21.15660291,92.349,92.3,3.38392666]
[1773621315908,21.15660291,92.349,92.3,14.80768657]
[1773621316405,21.15660291,92.349,92.31,3.38392666]
[1773621317009,21.15660291,92.349,92.24,19.511]
[1773621317010,21.15660291,92.349,92.283,11.51805545]
[1773621317310,21.15660291,92.349,92.3,3.38392666]
[1773621317505,21.15660291,92.369,92.31,3.38392666]
[1773621317911,21.15660291,92.349,92.29,3.38392666]
[1773621318408,21.15660291,92.349,92.302,9.749]
[1773621318612,21.15660291,92.349,92.31,3.38392666]
[1773621318913,21.15660291,92.349,92.302,20.34044033]
[1773621319207,21.15660291,92.368,92.305,10.25975231]
[1773621319413,9.741,92.379,92.305,10.25975231]
[1773621319609,21.15660291,92.384,92.305,10.25975231]
[1773621319809,21.15660291,92.384,92.32,10.25975231]
[1773621320810,21.15660291,92.381,92.32,10.25975231]
[1773621321023,21.15660291,92.381,92.302,9.95614383]
[1773621322014,19.97552918,92.369,92.302,9.95614383]
[1773621322624,29.71852918,92.359,92.302,9.95614383]
[1773621323527,19.97552918,92.359,92.304,9.748]
[1773621323724,19.97552918,92.359,92.305,8.8680339]
[1773621324021,19.97552918,92.38,92.305,8.8680339]
[1773621324218,19.97552918,92.38,92.319,18.49853815]
[1773621324417,19.97552918,92.38,92.32,8.75153815]
[1773621324823,19.97552918,92.38,92.323,9.746]
[1773621325023,19.97552918,92.38,92.324,8.75153815]
[1773621325221,34.12,92.402,92.324,8.75153815]
[1773621325416,19.97552918,92.401,92.324,8.75153815]
[1773621326517,19.97552918,92.401,92.337,7.72240914]
[1773621327424,19.97552918,92.399,92.337,7.72240914]
[1773621327626,19.97552918,92.399,92.301,7.34252763]
[1773621328220,34.12,92.416,92.301,7.34252763]
[1773621328221,19.97552918,92.388,92.317,9.747]
[1773621328424,19.97552918,92.388,92.301,7.34252763]
[1773621328425,8.03974061,92.38,92.301,7.34252763]
[1773621328623,19.97552918,92.379,92.281,7.10164756]
[1773621328824,19.97552918,92.349,92.281,7.10164756]
[1773621330829,19.97552918,92.341,92.27,9.752]
[1773621331419,19.97552918,92.331,92.262,6.55020969]
[1773621332129,19.97552918,92.331,92.264,6.52639506]
[1773621332929,19.97552918,92.329,92.264,6.52639506]
[1773621333129,19.97552918,92.329,92.248,6.25948224]
[1773621333721,19.97552918,92.313,92.248,6.25948224]
[1773621334732,19.97552918,92.311,92.231,5.98126279]
[1773621335935,34.12,92.316,92.191,34.74]
[1773621335936,19.97552918,92.294,92.221,9.757]
[1773621336237,19.97552918,92.294,92.213,5.88381819]
[1773621337633,19.97552918,92.294,92.185,13.15854966]
[1773621337634,19.97552918,92.311,92.232,5.57139748]
[1773621338535,19.97552918,92.311,92.257,9.753]
[1773621339133,19.97552918,92.299,92.229,5.36895991]
[1773621340433,19.97552918,92.317,92.242,5.05868486]
[1773621341528,19.97552918,92.317,92.274,9.752]
[1773621341728,19.97552918,92.339,92.274,9.752]
[1773621341931,19.97552918,92.339,92.264,4.8885235]
[1773621342134,19.97552918,92.328,92.268,9.752]
[1773621342632,19.97552918,92.348,92.281,4.79974196]
[1773621343238,19.97552918,92.343,92.281,4.79974196]
[1773621344029,19.97552918,92.343,92.282,9.751]
[1773621345641,19.97552918,92.341,92.282,9.751]
[1773621345843,19.97552918,92.341,92.272,9.752]
[1773621346644,19.97552918,92.338,92.272,9.752]
[1773621347642,19.97552918,92.332,92.272,9.752]
[1773621347943,19.97552918,92.332,92.283,3.97220229]
[1773621348339,19.97552918,92.332,92.269,9.98849001]
[1773621348543,19.97552918,92.332,92.27,9.98849001]
[1773621348741,19.97552918,92.354,92.287,3.78486132]
[1773621349239,19.97552918,92.354,92.305,9.748]
[1773621350344,19.97552918,92.354,92.295,9.749]
[1773621351136,19.97552918,92.35,92.284,9.751]
[1773621351847,19.97552918,92.336,92.272,9.98849001]
[1773621352244,19.97552918,92.336,92.274,9.98849001]
[1773621353247,19.97552918,92.336,92.275,9.98849001]
[1773621353447,19.97552918,92.336,92.276,2.53789975]
[1773621353644,19.97552918,92.336,92.286,9.75]
[1773621353946,19.97552918,92.336,92.279,2.53789975]
[1773621354246,19.97552918,92.336,92.28,2.41073614]
[1773621355249,19.97552918,92.336,92.281,2.25334716]
[1773621355646,19.97552918,92.336,92.296,9.749]
[1773621356044,19.97552918,92.336,92.282,9.98849001]
[1773621356246,19.97552918,92.336,92.281,2.25334716]
[1773621356647,19.97552918,92.336,92.295,9.749]
[1773621357647,19.97552918,92.336,92.304,9.748]
[1773621358543,34.12,92.374,92.304,9.748]